bitfinex/quotes_BTCUSD_20241120
["timestamp","ask_amount","ask_price","bid_price","bid_amount"]
[1732121999916,0.25631512,93973.0,93972.0,0.00283073]
[1732122000560,0.12676682,93973.0,93972.0,0.00283073]
[1732122000987,0.10711512,93973.0,93972.0,0.00283073]
[1732122001190,0.01,93977.0,93972.0,0.00283073]
[1732122001441,0.01,93973.0,93972.0,0.00283073]
[1732122001710,0.24361512,93973.0,93972.0,0.00283073]
[1732122001911,0.24361512,93973.0,93947.0,0.04389744]
[1732122001912,0.01,93952.0,93947.0,0.04389744]
[1732122002118,0.01,93946.0,93913.0,0.09490457]
[1732122002377,0.01,93946.0,93908.0,0.18980914]
[1732122002378,0.11711512,93945.0,93908.0,0.17620457]
[1732122002602,0.01,93943.0,93908.0,0.18841512]
[1732122002842,0.002,93955.0,93908.0,0.18841512]
[1732122002843,0.0822,93929.0,93908.0,0.04344526]
[1732122003338,0.002,93958.0,93910.0,0.0801]
[1732122003339,0.048138,93947.0,93910.0,0.0801]
[1732122003621,0.0822,93965.0,93918.0,0.01]
[1732122003822,0.0822,93965.0,93919.0,0.18721512]
[1732122003823,0.10711512,93964.0,93919.0,0.18721512]
[1732122004033,0.10711512,93964.0,93922.0,0.01]
[1732122004239,0.10711512,93964.0,93925.0,0.023]
[1732122004450,0.0822,93975.0,93927.0,0.1801]
[1732122004715,0.10711512,93971.0,93929.0,0.1]
[1732122004918,0.10711512,93971.0,93931.0,0.1]
[1732122005135,0.10711512,93971.0,93933.0,0.1]
[1732122005345,0.10711512,93970.0,93944.0,0.0804]
[1732122005553,0.10622027,93989.0,93945.0,0.11]
[1732122005771,0.01964609,93988.0,93945.0,0.11]
[1732122005980,0.65137567,94008.0,93945.0,0.11]
[1732122005981,0.12676121,93987.0,93945.0,0.11]
[1732122006187,0.01964609,93986.0,93947.0,0.01]
[1732122006404,0.17506121,93985.0,93947.0,0.01]
[1732122006609,0.17506121,93985.0,93947.0,0.011711]
[1732122006610,0.01965096,93984.0,93947.0,0.011711]
[1732122006826,0.0008555,93972.0,93947.0,0.011711]
[1732122008825,0.0483,93985.0,93954.0,0.01]
[1732122009052,0.01968165,93984.0,93957.0,0.01]
[1732122009291,0.04312813,93987.0,93966.0,0.01]
[1732122009292,0.01968165,93983.0,93966.0,0.01]
[1732122009545,0.0488,94009.0,93969.0,0.01]
[1732122009962,0.0488,94009.0,93973.0,0.01]
[1732122009963,0.01969787,94004.0,93973.0,0.01]
[1732122010168,0.12681299,94003.0,93975.0,0.01]
[1732122010372,0.01971003,94002.0,93975.0,0.01]
[1732122010607,0.10711512,94001.0,93975.0,0.01]
[1732122011072,0.0197114,94000.0,93975.0,0.01]
[1732122011293,0.10711512,94001.0,93975.0,0.01]
[1732122011502,0.01972217,94000.0,93975.0,0.01]
[1732122011971,0.000895,94021.0,93986.0,0.0828]
[1732122012253,0.000895,94021.0,93992.0,0.01]
[1732122012461,0.0197246,94019.0,93992.0,0.11711512]
[1732122012671,0.0197246,94019.0,93993.0,0.1]
[1732122012879,0.0197246,94018.0,93993.0,0.1]
[1732122013368,0.12683972,94017.0,93993.0,0.1]
[1732122013833,0.0197246,94016.0,93988.0,0.01]
[1732122014060,0.10711512,94015.0,93988.0,0.01]
[1732122014268,0.10711512,94015.0,93987.0,0.1]
[1732122014269,0.0197246,94014.0,93987.0,0.1]
[1732122014482,0.12683972,94013.0,93986.0,0.0828]
[1732122014699,0.0197246,94012.0,93986.0,0.0828]
[1732122014939,0.0028554,94020.0,93986.0,0.0828]
[1732122014940,0.12683972,94011.0,93986.0,0.0928]
[1732122015165,0.0008554,94020.0,93986.0,0.0928]
[1732122015166,0.0197246,94010.0,93986.0,0.0928]
[1732122015384,0.10711512,94019.0,93989.0,0.02]
[1732122015600,0.0008554,94020.0,93996.0,0.01]
[1732122015601,0.01970653,94018.0,93996.0,0.01]
[1732122015812,0.0008554,94020.0,93988.0,0.0464]
[1732122015813,0.01970653,94017.0,93999.0,0.02]
[1732122016046,0.0008554,94020.0,94000.0,0.1]
[1732122016257,0.01970012,94019.0,94000.0,0.1]
[1732122016477,0.0008554,94020.0,94002.0,0.1]
[1732122017119,0.0008554,94020.0,94004.0,0.02]
[1732122017374,0.0008554,94020.0,94007.0,0.01]
[1732122017586,0.0008554,94020.0,94011.0,0.0903]
[1732122017804,0.0008554,94020.0,94012.0,0.1]
[1732122018243,0.0267504,94026.0,94012.0,0.1]
[1732122018899,0.0267504,94026.0,94011.0,0.19741512]
[1732122018900,0.0267504,94026.0,94020.0,0.01]
[1732122019141,0.0267504,94026.0,94021.0,0.1]
[1732122020493,0.00575039,94026.0,94021.0,0.1]
[1732122020753,0.00575039,94026.0,94022.0,0.1]
[1732122021868,0.00575039,94026.0,94022.0,0.0999]
[1732122022742,0.00575039,94026.0,94023.0,0.0781]
[1732122022980,0.0004,94059.0,94024.0,0.15571512]
[1732122023187,0.0004,94059.0,94051.0,0.1385]
[1732122023447,0.0004,94059.0,94051.0,0.25561512]
[1732122023663,0.0004,94059.0,94051.0,0.0899]
[1732122023901,0.0004,94059.0,94051.0,0.18701512]
[1732122024144,0.0004,94059.0,94051.0,0.29701512]
[1732122025034,0.0004,94059.0,94051.0,0.30701512]
[1732122026604,0.0004,94059.0,94051.0,0.33001512]
[1732122026825,0.0026,94052.0,94051.0,0.33001512]
[1732122029562,0.5305,94065.0,94064.0,0.02]
[1732122029563,0.51288575,94065.0,94064.0,0.02]
[1732122029797,0.0797,94122.0,94075.0,0.02]
[1732122030003,0.0492,94108.0,94075.0,0.12711512]
[1732122030646,0.0492,94108.0,94075.0,0.22711512]
[1732122031279,0.0492,94108.0,94075.0,0.26949276]
[1732122031691,0.0492,94108.0,94075.0,0.25949276]
[1732122031952,0.0492,94108.0,94075.0,0.04237764]
[1732122032175,0.0492,94108.0,94075.0,0.25949276]
[1732122032396,0.0492,94108.0,94084.0,0.01]
[1732122032673,0.0492,94108.0,94094.0,0.01]
[1732122032883,0.0008553,94112.0,94095.0,0.1]
[1732122033108,0.0008553,94112.0,94098.0,0.01]
[1732122033326,0.0463105,94121.0,94103.0,0.01]
[1732122033536,0.0463105,94121.0,94104.0,0.1]
[1732122033746,0.01956369,94120.0,94104.0,0.1]
[1732122033951,0.0463105,94121.0,94104.0,0.1]
[1732122033952,0.01956369,94119.0,94106.0,0.1]
[1732122034214,0.01956369,94118.0,94107.0,0.10711512]
[1732122034427,0.01956369,94117.0,94116.0,0.005]
[1732122034655,0.01956369,94117.0,94116.0,0.21211512]
[1732122035103,0.01956369,94117.0,94116.0,0.22211512]
[1732122035324,0.0140281,94128.0,94120.0,0.015]
[1732122035569,0.0076,94133.0,94121.0,0.1]
[1732122035570,0.05084459,94127.0,94121.0,0.1]
[1732122035805,0.05084459,94126.0,94121.0,0.1]
[1732122036024,0.05084459,94125.0,94121.0,0.1]
[1732122036268,0.00062809,94133.0,94121.0,0.1]
[1732122036269,0.05084459,94124.0,94121.0,0.1]
[1732122036503,0.06409385,94123.0,94121.0,0.1]
[1732122036710,0.06409385,94122.0,94118.0,0.01]
[1732122037140,0.00062809,94133.0,94124.0,0.1]
[1732122037366,0.01952915,94132.0,94131.0,0.005]
[1732122037608,0.01952915,94132.0,94131.0,0.21211512]
[1732122037827,0.01952915,94132.0,94131.0,0.20711512]
[1732122038034,0.01952915,94132.0,94131.0,0.21317741]
[1732122038035,0.05077808,94132.0,94131.0,0.21317741]
[1732122038260,0.05077808,94132.0,94131.0,0.21211512]
[1732122038486,0.05077808,94132.0,94131.0,0.1]
[1732122038716,0.05077808,94132.0,94121.0,0.005]
[1732122038717,0.05077808,94132.0,94130.0,0.04301305]
[1732122038922,0.05077808,94131.0,94123.0,0.01]
[1732122039138,0.05077808,94131.0,94122.0,0.11]
[1732122039338,0.05077808,94130.0,94122.0,0.1]
[1732122039778,0.00062809,94133.0,94122.0,0.1]
[1732122039779,0.06370758,94129.0,94122.0,0.1]
[1732122040017,0.03124893,94128.0,94122.0,0.1]
[1732122040279,0.0485,94132.0,94109.0,0.005]
[1732122040280,0.04449737,94127.0,94109.0,0.005]
[1732122040483,0.04449737,94126.0,94103.0,0.005]
[1732122040710,0.04449737,94125.0,94109.0,0.01]
[1732122040935,0.04449737,94124.0,94109.0,0.01]
[1732122041155,0.07988073,94132.0,94098.0,0.04251053]
[1732122041156,0.04449737,94123.0,94098.0,0.04251053]
[1732122041410,0.04449737,94122.0,94101.0,0.005]
[1732122041712,0.04449737,94122.0,94114.0,0.01]
[1732122041909,0.03124893,94121.0,94114.0,0.01]
[1732122042135,0.00062809,94133.0,94114.0,0.01]
[1732122042136,0.03124893,94120.0,94114.0,0.01]
[1732122042381,0.03124893,94119.0,94114.0,0.01]
[1732122042589,0.00062809,94133.0,94119.0,0.005]
[1732122042837,0.04453032,94132.0,94119.0,0.11211512]
[1732122043047,0.04453154,94132.0,94120.0,0.10711512]
[1732122043256,0.04453154,94131.0,94122.0,0.01]
[1732122043683,0.00062809,94133.0,94126.0,0.005]
[1732122043684,0.04453154,94130.0,94126.0,0.005]
[1732122043916,0.00062809,94133.0,94126.0,0.11211512]
[1732122044170,0.03128758,94132.0,94127.0,0.1]
[1732122044381,0.00062809,94133.0,94127.0,0.1]
[1732122044382,0.03128758,94131.0,94127.0,0.1]
[1732122044606,0.03129662,94130.0,94127.0,0.1]
[1732122044834,0.03129662,94129.0,94127.0,0.1]
[1732122045038,0.03129662,94129.0,94000.0,0.10435154]
[1732122045039,0.03129662,94128.0,94113.0,0.005]
[1732122045151,0.00062809,94133.0,94113.0,0.005]
[1732122045152,0.03129662,94127.0,94113.0,0.005]
[1732122045371,0.04454478,94126.0,94113.0,0.005]
[1732122045586,0.04454478,94125.0,94113.0,0.005]
[1732122045802,0.04454478,94124.0,94113.0,0.005]
[1732122046022,0.03129662,94123.0,94114.0,0.01]
[1732122046232,0.04454478,94122.0,94114.0,0.01]
[1732122046438,0.03129662,94121.0,94114.0,0.01]
[1732122046653,0.03128341,94131.0,94114.0,0.01]
[1732122046654,0.03129662,94120.0,94114.0,0.01]
[1732122046860,0.03129662,94119.0,94114.0,0.01]
[1732122047075,0.03129662,94118.0,94114.0,0.01]
[1732122047280,0.03129662,94117.0,94114.0,0.01]
[1732122047492,0.03129662,94116.0,94096.0,0.01]
[1732122047699,0.03128341,94112.0,94099.0,0.01]
[1732122047944,0.0541,94126.0,94099.0,0.01]
[1732122047945,0.03128341,94110.0,94099.0,0.01]
[1732122048171,0.10711512,94125.0,94099.0,0.01]
[1732122048172,0.03128341,94103.0,94099.0,0.01]
[1732122048387,0.03128341,94101.0,94098.0,0.01]
[1732122048604,0.04454514,94100.0,94098.0,0.01]
[1732122048814,0.04454514,94100.0,94096.0,0.04366625]
[1732122048815,0.04454514,94099.0,94096.0,0.04366625]
[1732122049024,0.04454514,94098.0,94093.0,0.00996]
[1732122049236,0.03129662,94097.0,94093.0,0.00996]
[1732122049484,0.04454514,94096.0,94093.0,0.00996]
[1732122049740,0.04454514,94095.0,94093.0,0.05241653]
[1732122049952,0.04454514,94094.0,94093.0,0.00996]
[1732122050401,0.11166026,94125.0,94093.0,0.00996]
[1732122050629,0.03144119,94100.0,94093.0,0.00996]
[1732122050862,0.03144119,94099.0,94093.0,0.00996]
[1732122051280,0.10711512,94120.0,94093.0,0.00996]
[1732122051281,0.03144119,94095.0,94093.0,0.00996]
[1732122051508,0.03144119,94094.0,94093.0,0.00996]
[1732122051735,0.0196711,94094.0,94093.0,0.00996]
[1732122051958,0.0196711,94094.0,94093.0,0.2561379]
[1732122052208,0.0196711,94094.0,94093.0,0.34677512]
[1732122052644,0.03229569,94132.0,94120.0,0.005]
[1732122052870,0.01968526,94131.0,94122.0,0.01]
[1732122053094,0.01968526,94131.0,94121.0,0.1]
[1732122053095,0.01968526,94130.0,94126.0,0.015]
[1732122053336,0.01968526,94129.0,94127.0,0.1]
[1732122053553,0.0008545,94132.0,94127.0,0.105]
[1732122053554,0.01968526,94128.0,94127.0,0.105]
[1732122053776,0.01968526,94128.0,94127.0,0.115]
[1732122053983,0.0008545,94132.0,94131.0,0.005]
[1732122054191,0.02054664,94132.0,94131.0,0.005]
[1732122054645,0.0008545,94132.0,94131.0,0.005]
[1732122055077,0.0008545,94132.0,94131.0,0.0049]
[1732122055282,0.0008545,94132.0,94131.0,0.04901309]
[1732122055496,0.0008545,94132.0,94131.0,0.0149]
[1732122056444,0.0008545,94132.0,94131.0,0.01596216]
[1732122056678,0.0008545,94132.0,94131.0,0.0149]
[1732122057820,0.0008545,94132.0,94131.0,0.22201512]
[1732122058924,0.0008545,94132.0,94131.0,0.01]
[1732122059150,0.02059293,94132.0,94130.0,0.04372553]
[1732122059376,0.02059293,94132.0,94128.0,0.1]
[1732122059377,0.0008545,94132.0,94131.0,0.01]
[1732122059601,0.0008545,94132.0,94110.0,0.01]
[1732122059602,0.02059319,94132.0,94121.0,0.04233461]
[1732122059817,0.01973869,94131.0,94120.0,0.0049]
[1732122060027,0.01973869,94130.0,94120.0,0.11201512]
[1732122060253,0.01973869,94129.0,94120.0,0.10711512]
[1732122060488,0.0008545,94132.0,94131.0,0.0049]
[1732122060697,0.025,94141.0,94131.0,0.0049]
[1732122060698,0.00688259,94141.0,94132.0,0.11]
[1732122060913,0.00688259,94141.0,94134.0,0.1]
[1732122061371,0.01974945,94140.0,94124.0,0.1]
[1732122061612,0.00688259,94141.0,94127.0,0.01]
[1732122061847,0.00688259,94141.0,94133.0,0.0049]
[1732122061848,0.01975026,94140.0,94133.0,0.0049]
[1732122062063,0.01975012,94139.0,94134.0,0.1]
[1732122062279,0.00688259,94141.0,94134.0,0.1]
[1732122062280,0.01976042,94138.0,94134.0,0.1]
[1732122062517,0.00688259,94141.0,94134.0,0.20711512]
[1732122062755,0.01975998,94140.0,94134.0,0.1]
[1732122062961,0.00688259,94141.0,94134.0,0.21201512]
[1732122063182,0.00688259,94141.0,94140.0,0.0149]
[1732122063392,0.00688259,94141.0,94140.0,0.12201512]
[1732122063625,0.00688259,94141.0,94140.0,0.22201512]
[1732122065428,0.11451162,94179.0,94140.0,0.22201512]
[1732122065429,0.023,94201.0,94149.0,0.002]
[1732122065652,0.10711512,94183.0,94149.0,0.002]
[1732122065867,0.05135664,94182.0,94148.0,0.01]
[1732122066077,0.15847176,94181.0,94148.0,0.01]
[1732122066309,0.05135664,94180.0,94148.0,0.01]
[1732122066534,0.05135664,94179.0,94156.0,0.01]
[1732122066750,0.05135664,94178.0,94155.0,0.01]
[1732122066971,0.05135664,94177.0,94156.0,0.102]
[1732122067239,0.01975255,94176.0,94159.0,0.02]
[1732122067475,0.01975255,94175.0,94160.0,0.1]
[1732122067691,0.01975255,94174.0,94160.0,0.1]
[1732122067913,0.10711512,94198.0,94160.0,0.1]
[1732122068126,0.01974868,94197.0,94162.0,0.11]
[1732122068335,0.0494,94195.0,94162.0,0.21711512]
[1732122068559,0.1268638,94194.0,94165.0,0.01]
[1732122068784,0.05133054,94193.0,94168.0,0.002]
[1732122069003,0.01974868,94192.0,94172.0,0.01]
[1732122069221,0.0008561,94176.0,94175.0,0.01]
[1732122069452,0.0008561,94176.0,94175.0,0.21711512]
[1732122069915,0.0008561,94176.0,94175.0,0.24901705]
[1732122070162,0.0008561,94176.0,94175.0,0.21711512]
[1732122070394,0.0008561,94176.0,94175.0,0.21911512]
[1732122070630,0.0008561,94176.0,94175.0,0.25101705]
[1732122070850,0.0008561,94176.0,94175.0,0.21911512]
[1732122071066,0.0008561,94176.0,94155.0,0.02359395]
[1732122071315,0.0008561,94176.0,94157.0,0.13011512]
[1732122071537,0.0008561,94176.0,94159.0,0.01]
[1732122071768,0.0008561,94176.0,94160.0,0.11944686]
[1732122072923,0.0008561,94176.0,94160.0,0.10711512]
[1732122073162,0.0008561,94176.0,94161.0,0.11233174]
[1732122073375,0.0008561,94176.0,94163.0,0.1]
[1732122073586,0.0008561,94176.0,94159.0,0.01]
[1732122073587,0.0008561,94176.0,94165.0,0.1]
[1732122073848,0.0008561,94176.0,94166.0,0.10817682]
[1732122074066,0.0058561,94195.0,94167.0,0.1]
[1732122074305,0.0058561,94195.0,94169.0,0.1]
[1732122074546,0.0058561,94195.0,94171.0,0.1]
[1732122074761,0.0058561,94195.0,94173.0,0.1]
[1732122074978,0.0483,94206.0,94164.0,0.0764]
[1732122074979,0.0058561,94196.0,94175.0,0.1]
[1732122075220,0.0058561,94200.0,94177.0,0.1]
[1732122075446,0.0483,94206.0,94176.0,0.10817682]
[1732122075447,0.0058561,94202.0,94179.0,0.1]
[1732122075672,0.0058561,94202.0,94180.0,0.10711512]
[1732122075907,0.0058561,94202.0,94181.0,0.1]
[1732122076116,0.0483,94206.0,94182.0,0.00930697]
[1732122076326,0.0483,94206.0,94181.0,0.10930697]
[1732122076327,0.0058561,94198.0,94181.0,0.1]
[1732122076773,0.0058561,94198.0,94182.0,0.01861394]
[1732122076996,0.0058561,94198.0,94184.0,0.1]
[1732122077231,0.0058561,94198.0,94184.0,0.11861394]
[1732122077444,0.0058561,94198.0,94184.0,0.1]
[1732122077658,0.0058561,94198.0,94185.0,0.00930697]
[1732122077892,0.0483,94206.0,94186.0,0.10711512]
[1732122078097,0.0058561,94208.0,94187.0,0.11861394]
[1732122078098,0.0008561,94208.0,94187.0,0.11861394]
[1732122078309,0.0008561,94208.0,94187.0,0.22572906]
[1732122078772,0.0008561,94208.0,94188.0,0.0819]
[1732122078994,0.0008561,94208.0,94189.0,0.12708396]
[1732122080364,0.0290113,94220.0,94189.0,0.12708396]
[1732122080622,0.10711512,94219.0,94185.0,0.04399826]
[1732122080878,0.12711512,94219.0,94185.0,0.04399826]
[1732122081111,0.12711512,94219.0,94175.0,0.00106169]
[1732122081322,0.12711512,94219.0,94178.0,0.0017114]
[1732122081323,0.01968428,94218.0,94178.0,0.0017114]
[1732122081542,0.0008557,94198.0,94178.0,0.0017114]
[1732122081780,0.01,94194.0,94178.0,0.0017114]
[1732122081992,0.0008557,94198.0,94178.0,0.0017114]
[1732122081993,0.01,94183.0,94178.0,0.0017114]
[1732122082203,0.10711512,94182.0,94178.0,0.0017114]
[1732122082628,0.0916,94181.0,94178.0,0.0017114]
[1732122082838,0.01,94179.0,94178.0,0.0017114]
[1732122083070,0.11711512,94179.0,94178.0,0.0017114]
[1732122083287,0.12711512,94179.0,94178.0,0.0017114]
[1732122083527,0.01,94172.0,94126.0,0.0788]
[1732122083746,0.10711512,94171.0,94127.0,0.10711512]
[1732122084163,0.01,94167.0,94126.0,0.12273946]
[1732122084403,0.0818,94163.0,94126.0,0.12273946]
[1732122084619,0.01,94155.0,94118.0,0.0017122]
[1732122084836,0.01,94153.0,94118.0,0.0017122]
[1732122085091,0.0453,94142.0,94118.0,0.0017122]
[1732122085330,0.01,94139.0,94118.0,0.0017122]
[1732122085566,0.10711512,94138.0,94118.0,0.0017122]
[1732122085803,0.01,94132.0,94118.0,0.0017122]
[1732122086028,0.0756,94140.0,94118.0,0.0017122]
[1732122086029,0.01,94126.0,94118.0,0.0017122]
[1732122086277,0.01,94121.0,94118.0,0.0017122]
[1732122086519,0.53430848,94139.0,94118.0,0.0017122]
[1732122086520,0.03154156,94138.0,94118.0,0.0017122]
[1732122086956,0.10711512,94137.0,94118.0,0.0017122]
[1732122087879,0.0439139,94151.0,94118.0,0.0017122]
[1732122087880,0.01,94133.0,94118.0,0.0017122]
[1732122088144,0.01,94122.0,94118.0,0.0017122]
[1732122088383,0.10711512,94132.0,94118.0,0.0017122]
[1732122088649,0.0453,94142.0,94118.0,0.0017122]
[1732122088909,0.10711512,94131.0,94118.0,0.0017122]
[1732122089345,0.0453,94142.0,94118.0,0.0017122]
[1732122089566,0.10711512,94141.0,94118.0,0.0017122]
[1732122090235,0.01,94152.0,94118.0,0.0017122]
[1732122090236,0.0486,94159.0,94119.0,0.10711512]
[1732122090516,0.10711512,94153.0,94120.0,0.1]
[1732122090774,0.10711512,94153.0,94120.0,0.20711512]
[1732122091470,0.10711512,94153.0,94121.0,0.00106232]
[1732122091726,0.10711512,94153.0,94122.0,0.1]
[1732122091946,0.01,94174.0,94123.0,0.1081774]
[1732122092167,0.01,94200.0,94140.0,0.01]
[1732122092402,0.10711512,94197.0,94142.0,0.033]
[1732122092641,0.01,94195.0,94144.0,0.1]
[1732122092868,0.01,94178.0,94144.0,0.1]
[1732122093344,0.01,94183.0,94144.0,0.1]
[1732122093551,0.11882663,94182.0,94144.0,0.1]
[1732122093759,0.01,94173.0,94136.0,0.1]
[1732122093980,0.10711512,94160.0,94118.0,0.0770122]
[1732122094229,0.01,94157.0,94118.0,0.0770122]
[1732122094449,0.01,94166.0,94118.0,0.0770122]
[1732122094450,0.10711512,94156.0,94119.0,0.10711512]
[1732122094950,0.10711512,94156.0,94135.0,0.0017114]
[1732122095394,0.06211512,94156.0,94135.0,0.0017114]
[1732122095616,0.01,94151.0,94135.0,0.0017114]
[1732122095855,0.10711512,94150.0,94135.0,0.0017114]
[1732122096076,0.01,94142.0,94135.0,0.0017114]
[1732122096352,0.10711512,94141.0,94135.0,0.0017114]
[1732122096813,0.01,94138.0,94135.0,0.0017114]
[1732122097056,0.10711512,94137.0,94135.0,0.0017114]
[1732122097280,0.11711512,94136.0,94135.0,0.0017114]
[1732122097495,0.11711512,94136.0,94118.0,0.0017122]
[1732122097496,0.01,94121.0,94118.0,0.0017122]
[1732122097699,0.01,94119.0,94118.0,0.0017122]
[1732122097906,0.11711512,94119.0,94118.0,0.0017122]
[1732122099010,0.10711512,94119.0,94118.0,0.0017122]
[1732122099261,0.01,94157.0,94118.0,0.0017122]
[1732122099502,0.53430848,94161.0,94118.0,0.0017122]
[1732122099503,0.10711512,94141.0,94118.0,0.0017122]
[1732122099757,0.10711512,94156.0,94118.0,0.0017122]
[1732122099972,0.01,94157.0,94118.0,0.0017122]
[1732122099973,0.10711512,94152.0,94118.0,0.0017122]
[1732122100261,0.01,94157.0,94118.0,0.0017122]
[1732122100262,0.01,94146.0,94118.0,0.1017122]
[1732122100469,0.10711512,94145.0,94118.0,0.1017122]
[1732122100717,0.01,94144.0,94118.0,0.0017122]
[1732122100956,0.10703289,94145.0,94118.0,0.0017122]
[1732122100957,0.11711512,94131.0,94118.0,0.0017122]
[1732122101197,0.10711512,94131.0,94118.0,0.0017122]
[1732122102982,0.10711512,94131.0,94093.0,0.00996]
[1732122102983,0.10711512,94131.0,94089.0,0.00485677]
[1732122103191,0.10711512,94131.0,94071.0,0.0004]
[1732122103192,0.01,94128.0,94085.0,0.00106267]
[1732122103403,0.10711512,94127.0,94085.0,0.00106267]
[1732122104702,0.10711512,94127.0,94081.0,0.001709]
[1732122104703,0.01,94124.0,94081.0,0.001709]
[1732122104907,0.19741512,94123.0,94085.0,0.04410319]
[1732122105138,0.19741512,94123.0,94081.0,0.001709]
[1732122105139,0.19741512,94123.0,94089.0,0.1]
[1732122105350,0.18741512,94123.0,94089.0,0.1]
[1732122105773,0.002,94145.0,94081.0,0.001709]
[1732122105774,0.0778,94137.0,94091.0,0.1]
[1732122106050,0.0778,94137.0,94093.0,0.1811]
[1732122106051,0.10711512,94133.0,94093.0,0.1811]
[1732122106278,0.10711512,94133.0,94094.0,0.10711512]
[1732122106501,0.10711512,94133.0,94093.0,0.1811]
[1732122107437,0.10711512,94133.0,94093.0,0.18216266]
[1732122107690,0.10711512,94133.0,94093.0,0.12416857]
[1732122108163,0.57658139,94141.0,94093.0,0.12416857]
[1732122108164,0.01,94154.0,94102.0,0.01]
[1732122108414,0.0775,94159.0,94106.0,0.01]
[1732122108640,0.0775,94159.0,94110.0,0.01]
[1732122108873,0.0775,94159.0,94113.0,0.01]
[1732122109085,0.0775,94159.0,94115.0,0.1]
[1732122109332,0.0775,94159.0,94116.0,0.10711512]
[1732122109575,0.01,94167.0,94117.0,0.1]
[1732122109808,0.01,94167.0,94118.0,0.10711512]
[1732122110018,0.01,94167.0,94119.0,0.1]
[1732122110225,0.01,94167.0,94121.0,0.1]
[1732122110467,0.255,94150.0,94123.0,0.1]
[1732122112532,0.255,94150.0,94125.0,0.1]
[1732122112767,0.255,94150.0,94126.0,0.10711512]
[1732122113005,0.255,94150.0,94127.0,0.1]
[1732122113214,0.255,94150.0,94129.0,0.1]
[1732122113431,0.255,94150.0,94123.0,0.04361892]
[1732122113432,0.255,94150.0,94131.0,0.1]
[1732122113657,0.255,94150.0,94133.0,0.1]
[1732122113862,0.255,94150.0,94135.0,0.1]
[1732122114083,0.255,94150.0,94123.0,0.04361892]
[1732122114084,0.255,94150.0,94137.0,0.1]
[1732122114297,0.255,94150.0,94139.0,0.1]
[1732122114508,0.255,94150.0,94141.0,0.1]
[1732122114719,0.255,94150.0,94143.0,0.1]
[1732122114964,0.255,94150.0,94144.0,0.10711512]
[1732122115180,0.255,94150.0,94145.0,0.1]
[1732122115426,0.255,94150.0,94145.0,0.20711512]
[1732122115636,0.255,94150.0,94147.0,0.1]
[1732122115852,0.255,94150.0,94149.0,0.11]
[1732122116063,0.255,94150.0,94149.0,0.32571512]
[1732122116340,0.17534608,94150.0,94149.0,0.35306458]
[1732122116550,0.0008557,94198.0,94179.0,0.1]
[1732122116789,0.0008557,94198.0,94180.0,0.02734946]
[1732122117494,0.0008557,94198.0,94166.0,0.01]
[1732122117717,0.0008557,94198.0,94168.0,0.1]
[1732122117926,0.0008557,94198.0,94170.0,0.1]
[1732122118134,0.0008557,94198.0,94172.0,0.1]
[1732122118341,0.0008557,94198.0,94173.0,0.02734946]
[1732122119448,0.0008557,94198.0,94165.0,0.01]
[1732122119686,0.0008557,94198.0,94174.0,0.00462242]
[1732122119911,0.0008557,94198.0,94165.0,0.04301777]
[1732122119912,0.10711512,94192.0,94165.0,0.04301777]
[1732122120422,0.10711512,94192.0,94149.0,0.0756]
[1732122120624,0.10711512,94192.0,94150.0,0.01]
[1732122120833,0.10711512,94192.0,94149.0,0.0756]
[1732122120834,0.10711512,94192.0,94149.0,0.11857042]
[1732122121047,0.22831512,94191.0,94149.0,0.04297042]
[1732122121484,0.07831512,94191.0,94136.0,0.0751]
[1732122121697,0.11711512,94188.0,94137.0,0.10711512]
[1732122122121,0.0008562,94193.0,94136.0,0.0751]
[1732122122122,0.11711512,94181.0,94136.0,0.0751]
[1732122122340,0.10711512,94181.0,94137.0,0.10711512]
[1732122123317,0.10711512,94178.0,94136.0,0.0751]
[1732122123540,0.01,94182.0,94136.0,0.0751]
[1732122123541,0.11711512,94177.0,94136.0,0.0751]
[1732122123977,0.10711512,94169.0,94134.0,0.04269132]
[1732122124187,0.11711512,94169.0,94134.0,0.04269132]
[1732122124410,0.1294,94168.0,94123.0,0.0762]
[1732122124616,0.10711512,94167.0,94123.0,0.0762]
[1732122124835,0.11711512,94164.0,94123.0,0.0762]
[1732122125052,0.10711512,94154.0,94116.0,0.04282041]
[1732122125355,0.002,94167.0,94109.0,0.0813]
[1732122125356,0.10711512,94151.0,94109.0,0.0813]
[1732122125517,0.06911512,94151.0,94110.0,0.10817761]
[1732122125750,0.06911512,94151.0,94110.0,0.10817755]
[1732122125991,0.06911512,94151.0,94110.0,0.10711512]
[1732122126232,0.06911512,94151.0,94110.0,0.11711512]
[1732122126477,0.06911512,94151.0,94111.0,0.1]
[1732122126713,0.06911512,94151.0,94113.0,0.1]
[1732122126945,0.06911512,94151.0,94114.0,0.10711512]
[1732122127177,0.06911512,94151.0,94115.0,0.1]
[1732122127420,0.06911512,94151.0,94117.0,0.1]
[1732122128134,0.06911512,94151.0,94119.0,0.1]
[1732122128403,0.1294,94168.0,94119.0,0.1]
[1732122128404,0.1294,94168.0,94120.0,0.10711512]
[1732122128604,0.1294,94168.0,94122.0,0.0919]
[1732122128605,0.10711512,94167.0,94122.0,0.0919]
[1732122128839,0.10711512,94167.0,94124.0,0.01]
[1732122129050,0.10711512,94167.0,94133.0,0.01]
[1732122129284,0.10711512,94167.0,94134.0,0.10711512]
[1732122129805,0.10711512,94167.0,94135.0,0.1]
[1732122130046,0.10711512,94167.0,94136.0,0.10711512]
[1732122130294,0.10711512,94167.0,94137.0,0.1]
[1732122130845,0.10711512,94167.0,94115.0,0.01]
[1732122130846,0.11782663,94167.0,94122.0,0.0819]
[1732122131092,0.11711512,94158.0,94122.0,0.0819]
[1732122131327,0.10711512,94147.0,94108.0,0.08116247]
[1732122131563,0.10711512,94147.0,94109.0,0.10711512]
[1732122132011,0.16291512,94146.0,94108.0,0.0801]